[Event "Masters Tournament (MTO)"]
[Site "Biel, Switzerland"]
[Date "2026.07.17"]
[Round "5.27"]
[White "Jelicic, Hugo"]
[Black "Kudryavtsev, Eugene"]
[Result "1/2-1/2"]
[TimeControl "100+30+30sec/move"]
[WhiteTitle "-"]
[BlackTitle "-"]
[WhiteFideId "1349040"]
[BlackFideId "1315374"]
[WhiteElo "1907"]
[BlackElo "2146"]

1. d4 {[%clk 01:40:57]} {[%emt 00:00:01]} Nf6 {[%clk 01:40:43]} {[%emt
00:00:17]} 2. Nf3 {[%clk 01:39:40]} {[%emt 00:01:48]} e6 {[%clk 01:40:37]}
{[%emt 00:00:36]} 3. Bf4 {[%clk 01:38:00]} {[%emt 00:02:11]} c5 {[%clk
01:39:29]} {[%emt 00:01:38]} 4. e3 {[%clk 01:37:39]} {[%emt 00:00:51]} Qb6
{[%clk 01:37:59]} {[%emt 00:01:59]} 5. Qc1 {[%clk 01:35:44]} {[%emt 00:02:25]}
Nc6 {[%clk 01:34:00]} {[%emt 00:04:29]} 6. c3 {[%clk 01:35:54]} {[%emt
00:00:20]} Be7 {[%clk 01:31:54]} {[%emt 00:02:36]} 7. Nbd2 {[%clk 01:34:51]}
{[%emt 00:01:34]} d5 {[%clk 01:31:56]} {[%emt 00:00:27]} 8. h3 {[%clk
01:33:08]} {[%emt 00:02:13]} Bd7 {[%clk 01:31:48]} {[%emt 00:00:38]} 9. Be2
{[%clk 01:26:43]} {[%emt 00:06:56]} O-O {[%clk 01:31:24]} {[%emt 00:00:54]} 10.
O-O {[%clk 01:25:24]} {[%emt 00:01:49]} Rfc8 {[%clk 01:29:02]} {[%emt
00:02:52]} 11. b3 {[%clk 01:13:07]} {[%emt 00:12:47]} cxd4 {[%clk 01:14:52]}
{[%emt 00:14:40]} 12. exd4 {[%clk 01:12:23]} {[%emt 00:01:13]} Ne4 {[%clk
00:49:14]} {[%emt 00:26:09]} 13. Qb2 {[%clk 01:07:10]} {[%emt 00:05:43]} Nxd2
{[%clk 00:44:49]} {[%emt 00:04:55]} 14. Nxd2 {[%clk 01:02:01]} {[%emt
00:05:38]} Na5 {[%clk 00:37:13]} {[%emt 00:08:06]} 15. Rab1 {[%clk 00:47:51]}
{[%emt 00:14:39]} Bd6 {[%clk 00:33:40]} {[%emt 00:04:04]} 16. Bxd6 {[%clk
00:45:49]} {[%emt 00:02:32]} Qxd6 {[%clk 00:34:05]} {[%emt 00:00:06]} 17. c4
{[%clk 00:39:45]} {[%emt 00:06:33]} dxc4 {[%clk 00:31:42]} {[%emt 00:02:53]} 18.
bxc4 {[%clk 00:37:37]} {[%emt 00:02:38]} b6 {[%clk 00:27:43]} {[%emt 00:04:29]}
19. Rfc1 {[%clk 00:26:26]} {[%emt 00:11:40]} Rab8 {[%clk 00:14:54]} {[%emt
00:13:19]} 20. Qc3 {[%clk 00:21:42]} {[%emt 00:05:15]} Nc6 {[%clk 00:13:50]}
{[%emt 00:01:34]} 21. Nb3 {[%clk 00:21:16]} {[%emt 00:00:56]} e5 {[%clk
00:06:56]} {[%emt 00:07:25]} 22. c5 {[%clk 00:09:36]} {[%emt 00:12:09]} Nxd4
{[%clk 00:03:19]} {[%emt 00:04:07]} 23. Nxd4 {[%clk 00:08:19]} {[%emt
00:01:46]} Qxd4 {[%clk 00:03:44]} {[%emt 00:00:05]} 24. Qa3 {[%clk 00:07:39]}
{[%emt 00:01:11]} Bf5 {[%clk 00:03:08]} {[%emt 00:01:06]} 25. Rb4 {[%clk
00:06:47]} {[%emt 00:01:22]} Qd2 {[%clk 00:03:25]} {[%emt 00:00:13]} 26. Bf3
{[%clk 00:06:24]} {[%emt 00:00:53]} a5 {[%clk 00:02:04]} {[%emt 00:01:52]} 27.
Rb5 {[%clk 00:03:45]} {[%emt 00:03:08]} e4 {[%clk 00:02:11]} {[%emt 00:00:23]}
28. c6 {[%clk 00:02:40]} {[%emt 00:01:36]} Qf4 {[%clk 00:01:00]} {[%emt
00:01:40]} 29. Rxf5 {[%clk 00:02:28]} {[%emt 00:00:42]} Qxf5 {[%clk 00:01:19]}
{[%emt 00:00:11]} 30. Bg4 {[%clk 00:02:35]} {[%emt 00:00:23]} Qe5 {[%clk
00:01:23]} {[%emt 00:00:26]} 31. Bxc8 {[%clk 00:02:10]} {[%emt 00:00:55]} Rxc8
{[%clk 00:01:49]} {[%emt 00:00:03]} 32. Qb3 {[%clk 00:02:11]} {[%emt 00:00:30]}
b5 {[%clk 00:00:42]} {[%emt 00:01:37]} 33. Qe3 {[%clk 00:02:12]} {[%emt
00:00:29]} g6 {[%clk 00:00:51]} {[%emt 00:00:21]} 34. Qb6 {[%clk 00:02:16]}
{[%emt 00:00:26]} Rc7 {[%clk 00:00:43]} {[%emt 00:00:39]} 35. Rc5 {[%clk
00:02:12]} {[%emt 00:00:33]} Qd6 {[%clk 00:00:41]} {[%emt 00:00:33]} 36. Qxb5
{[%clk 00:02:24]} {[%emt 00:00:17]} Qd1+ {[%clk 00:00:56]} {[%emt 00:00:16]} 37.
Qf1 {[%clk 00:01:25]} {[%emt 00:01:29]} Qd4 {[%clk 00:01:15]} {[%emt 00:00:11]}
38. Qc1 {[%clk 00:01:37]} {[%emt 00:00:18]} Qa4 {[%clk 00:00:45]} {[%emt
00:00:59]} 39. Rc4 {[%clk 00:00:50]} {[%emt 00:01:17]} Qxa2 {[%clk 00:00:44]}
{[%emt 00:00:31]} 40. Rxe4 {[%clk 00:01:07]} {[%emt 00:00:13]} Qd5 {[%clk
00:00:49]} {[%emt 00:00:25]} 41. Rc4 {[%clk 00:00:54]} {[%emt 00:00:43]} a4
{[%clk 00:17:57]} {[%emt 00:13:22]} 42. Rc3 {[%clk 00:29:31]} {[%emt 00:01:53]}
h5 {[%clk 00:06:22]} {[%emt 00:12:05]} 43. h4 {[%clk 00:21:48]} {[%emt
00:08:13]} Kh7 {[%clk 00:05:04]} {[%emt 00:01:48]} 44. Rc5 {[%clk 00:21:55]}
{[%emt 00:00:23]} Qe4 {[%clk 00:03:44]} {[%emt 00:01:50]} 45. Rc4 {[%clk
00:21:07]} {[%emt 00:01:18]} Qd5 {[%clk 00:04:00]} {[%emt 00:00:14]} 46. Qc2
{[%clk 00:19:55]} {[%emt 00:01:42]} a3 {[%clk 00:03:10]} {[%emt 00:01:20]} 47.
Rc5 {[%clk 00:18:41]} {[%emt 00:01:44]} Qd4 {[%clk 00:02:58]} {[%emt 00:00:42]}
48. Rxh5+ {[%clk 00:17:38]} {[%emt 00:01:33]} Kg7 {[%clk 00:03:26]} {[%emt
00:00:03]} 49. Ra5 {[%clk 00:16:40]} {[%emt 00:01:28]} Qb2 {[%clk 00:03:00]}
{[%emt 00:00:56]} 50. Qc5 {[%clk 00:15:09]} {[%emt 00:02:01]} a2 {[%clk
00:02:52]} {[%emt 00:00:38]} 51. Rxa2 {[%clk 00:15:18]} {[%emt 00:00:21]} Rxc6
{[%clk 00:02:19]} {[%emt 00:01:03]} 52. Qxc6 {[%clk 00:14:31]} {[%emt
00:01:17]} Qxa2 {[%clk 00:02:46]} {[%emt 00:00:03]} 53. Qc3+ {[%clk 00:14:55]}
{[%emt 00:00:06]} Kh7 {[%clk 00:02:41]} {[%emt 00:00:34]} 54. Qf6 {[%clk
00:15:09]} {[%emt 00:00:16]} Qd5 {[%clk 00:02:53]} {[%emt 00:00:18]} 55. Kh2
{[%clk 00:14:21]} {[%emt 00:01:19]} Kg8 {[%clk 00:03:06]} {[%emt 00:00:16]} 56.
f4 {[%clk 00:13:58]} {[%emt 00:00:53]} Kh7 {[%clk 00:01:56]} {[%emt 00:01:41]}
57. Qe5 {[%clk 00:13:37]} {[%emt 00:00:51]} Qd8 {[%clk 00:01:49]} {[%emt
00:00:37]} 58. Qg5 {[%clk 00:12:21]} {[%emt 00:01:46]} Qd1 {[%clk 00:02:00]}
{[%emt 00:00:19]} 59. f5 {[%clk 00:10:18]} {[%emt 00:02:32]} Qd6+ {[%clk
00:01:55]} {[%emt 00:00:36]} 60. Qg3 {[%clk 00:09:46]} {[%emt 00:01:02]} Qf6
{[%clk 00:01:56]} {[%emt 00:00:29]} 61. fxg6+ {[%clk 00:09:58]} {[%emt
00:00:18]} fxg6 {[%clk 00:02:21]} {[%emt 00:00:03]} 62. Kh3 {[%clk 00:08:32]}
{[%emt 00:01:57]} Qf5+ {[%clk 00:02:30]} {[%emt 00:00:22]} 63. Qg4 {[%clk
00:08:54]} {[%emt 00:00:07]} Qd3+ {[%clk 00:02:55]} {[%emt 00:00:05]} 64. Qf3
{[%clk 00:09:14]} {[%emt 00:00:10]} Qb1 {[%clk 00:01:47]} {[%emt 00:01:39]} 65.
g4 {[%clk 00:08:03]} {[%emt 00:01:41]} Kg7 {[%clk 00:01:22]} {[%emt 00:00:55]}
66. g5 {[%clk 00:06:15]} {[%emt 00:02:19]} Qb2 {[%clk 00:01:09]} {[%emt
00:00:41]} 67. Qe3 {[%clk 00:05:49]} {[%emt 00:00:56]} Qb1 {[%clk 00:00:44]}
{[%emt 00:00:55]} 68. Qf3 {[%clk 00:04:13]} {[%emt 00:02:07]} Qb2 {[%clk
00:01:05]} {[%emt 00:00:09]} 69. Qd3 {[%clk 00:02:44]} {[%emt 00:01:59]} Qe5
{[%clk 00:00:54]} {[%emt 00:00:41]} 70. Kg2 {[%clk 00:01:47]} {[%emt 00:01:26]}
Qe6 {[%clk 00:00:58]} {[%emt 00:00:27]} 71. Qd4+ {[%clk 00:01:22]} {[%emt
00:00:55]} Kf7 {[%clk 00:00:53]} {[%emt 00:00:34]} 72. Kg3 {[%clk 00:01:33]}
{[%emt 00:00:20]} Kg8 {[%clk 00:00:45]} {[%emt 00:00:38]} 73. Kf4 {[%clk
00:01:23]} {[%emt 00:00:39]} Qf5+ {[%clk 00:00:49]} {[%emt 00:00:27]} 74. Ke3
{[%clk 00:01:51]} {[%emt 00:00:01]} Qh3+ {[%clk 00:01:10]} {[%emt 00:00:09]} 75.
Kd2 {[%clk 00:02:09]} {[%emt 00:00:13]} Qe6 {[%clk 00:01:04]} {[%emt 00:00:36]}
76. Kc3 {[%clk 00:02:18]} {[%emt 00:00:21]} Kh7 {[%clk 00:00:46]} {[%emt
00:00:48]} 77. Kb4 {[%clk 00:02:25]} {[%emt 00:00:23]} Qc6 {[%clk 00:00:40]}
{[%emt 00:00:35]} 78. Ka5 {[%clk 00:02:30]} {[%emt 00:00:26]} Qb7 {[%clk
00:00:46]} {[%emt 00:00:23]} 79. Qf4 {[%clk 00:00:46]} {[%emt 00:02:15]} Qa7+
{[%clk 00:00:41]} {[%emt 00:00:35]} 80. Kb5 {[%clk 00:01:15]} Qb7+ {[%clk
00:01:08]} {[%emt 00:00:03]} 81. Kc5 {[%clk 00:01:37]} {[%emt 00:00:08]} Qd7
{[%clk 00:01:19]} {[%emt 00:00:19]} 82. Qd6 {[%clk 00:01:15]} {[%emt 00:00:52]}
Qf5+ {[%clk 00:01:26]} {[%emt 00:00:23]} 83. Qd5 {[%clk 00:01:02]} {[%emt
00:00:43]} Qf2+ {[%clk 00:01:38]} {[%emt 00:00:18]} 84. Qd4 {[%clk 00:01:30]}
{[%emt 00:00:02]} Qf5+ {[%clk 00:01:37]} {[%emt 00:00:30]} 85. Kd6 {[%clk
00:01:44]} {[%emt 00:00:17]} Qf8+ {[%clk 00:01:56]} {[%emt 00:00:11]} 86. Kc7
{[%clk 00:01:43]} {[%emt 00:00:31]} Qf3 {[%clk 00:01:20]} {[%emt 00:01:07]} 87.
Kc8 {[%clk 00:01:48]} {[%emt 00:00:25]} Qa8+ {[%clk 00:01:01]} {[%emt
00:00:49]} 88. Kd7 {[%clk 00:02:08]} {[%emt 00:00:09]} Qb7+ {[%clk 00:00:35]}
{[%emt 00:00:56]} 89. Ke8 {[%clk 00:02:27]} {[%emt 00:00:11]} Qf3 {[%clk
00:00:51]} {[%emt 00:00:14]} 90. Qf6 {[%clk 00:02:19]} {[%emt 00:00:38]} Qa8+
{[%clk 00:00:40]} {[%emt 00:00:42]} 91. Qd8 {[%clk 00:01:47]} {[%emt 00:01:01]}
Qf3 {[%clk 00:00:49]} {[%emt 00:00:21]} 92. Qd7+ {[%clk 00:00:44]} {[%emt
00:01:33]} Kg8 {[%clk 00:01:00]} {[%emt 00:00:19]} 93. Qe6 {[%clk 00:01:09]}
{[%emt 00:00:06]} Kg7 {[%clk 00:01:20]} {[%emt 00:00:11]} 94. Ke7 {[%clk
00:00:39]} {[%emt 00:00:59]} Qa3+ {[%clk 00:01:13]} {[%emt 00:00:36]} 95. Qd6
{[%clk 00:00:40]} {[%emt 00:00:30]} Qe3+ {[%clk 00:01:34]} {[%emt 00:00:08]} 96.
Kd8 {[%clk 00:00:54]} {[%emt 00:00:16]} Qf3 {[%clk 00:01:14]} {[%emt 00:00:51]}
97. Qe7+ {[%clk 00:00:35]} {[%emt 00:00:49]} Kg8 {[%clk 00:01:35]} {[%emt
00:00:09]} 98. Qd7 {[%clk 00:00:43]} {[%emt 00:00:23]} Qf4 {[%clk 00:01:07]}
{[%emt 00:00:57]} 99. Qe6 {[%clk 00:00:36]} {[%emt 00:00:36]} Kg7 {[%clk
00:01:08]} {[%emt 00:00:29]} 100. Kd7 {[%clk 00:00:47]} {[%emt 00:00:19]} Qa4+
{[%clk 00:00:59]} {[%emt 00:00:39]} 101. Ke7 {[%clk 00:00:53]} {[%emt
00:00:24]} Qb4+ {[%clk 00:01:13]} {[%emt 00:00:16]} 102. Qd6 {[%clk 00:00:47]}
{[%emt 00:00:37]} Qe4+ {[%clk 00:01:29]} {[%emt 00:00:14]} 103. Kd8 {[%clk
00:00:43]} {[%emt 00:00:34]} Qa8+ {[%clk 00:01:13]} {[%emt 00:00:46]} 104. Kd7
{[%clk 00:01:10]} {[%emt 00:00:03]} Qa4+ {[%clk 00:01:23]} {[%emt 00:00:20]}
105. Kc8 {[%clk 00:01:20]} {[%emt 00:00:21]} Qa8+ {[%clk 00:01:34]} {[%emt
00:00:19]} 106. Qb8 {[%clk 00:01:40]} {[%emt 00:00:10]} Qf3 {[%clk 00:01:28]}
{[%emt 00:00:35]} 107. Qc7+ {[%clk 00:01:32]} {[%emt 00:00:38]} Kg8 {[%clk
00:01:19]} {[%emt 00:00:40]} 108. Qc4 {[%clk 00:01:39]} {[%emt 00:00:22]} Kg7
{[%clk 00:01:27]} {[%emt 00:00:22]} 109. Kd7 {[%clk 00:02:00]} {[%emt
00:00:09]} Qf5+ {[%clk 00:01:01]} {[%emt 00:00:55]} 110. Qe6 {[%clk 00:02:06]}
{[%emt 00:00:25]} Qd3+ {[%clk 00:01:25]} {[%emt 00:00:05]} 111. Qd6 {[%clk
00:01:22]} {[%emt 00:01:14]} Qf5+ {[%clk 00:01:38]} {[%emt 00:00:18]} 112. Ke8
{[%clk 00:01:13]} {[%emt 00:00:40]} Qf7+ {[%clk 00:01:46]} {[%emt 00:00:21]}
113. Kd8 {[%emt 00:00:14]} Qf3 {[%clk 00:02:03]} 114. Kc8 {[%clk 00:00:31]}
{[%emt 00:01:41]} Qa8+ {[%clk 00:01:00]} {[%emt 00:01:34]} 115. Kd7 {[%clk
00:00:55]} {[%emt 00:00:05]} Qa4+ {[%clk 00:01:11]} {[%emt 00:00:19]} 1/2-1/2

[Event "Masters Tournament (MTO)"]
[Site "Biel, Switzerland"]
[Date "2026.07.17"]
[Round "5.28"]
[White "Vihaan, Dumir"]
[Black "Tan, Jimmy"]
[Result "1-0"]
[TimeControl "100+30+30sec/move"]
[WhiteTitle "-"]
[BlackTitle "-"]
[WhiteFideId "25901010"]
[BlackFideId "129057499"]
[WhiteElo "2132"]
[BlackElo "1953"]

1. e4 {[%clk 01:40:54]} c6 {[%clk 01:40:56]} {[%emt 00:00:05]} 2. d4 {[%clk
01:41:19]} {[%emt 00:00:05]} d5 {[%clk 01:41:22]} {[%emt 00:00:04]} 3. f3
{[%clk 01:41:44]} {[%emt 00:00:06]} Qb6 {[%clk 01:39:38]} {[%emt 00:02:12]} 4.
Nc3 {[%clk 01:42:04]} {[%emt 00:00:10]} e5 {[%clk 01:39:04]} {[%emt 00:01:05]}
5. dxe5 {[%clk 01:41:05]} {[%emt 00:01:29]} Bc5 {[%clk 01:37:27]} {[%emt
00:02:07]} 6. Na4 {[%clk 01:41:16]} {[%emt 00:00:17]} Qa5+ {[%clk 01:34:28]}
{[%emt 00:03:31]} 7. c3 {[%emt 00:05:24]} Bxg1 {[%clk 01:29:52]} {[%emt
00:00:02]} 8. Rxg1 {[%clk 01:40:54]} {[%emt 00:01:01]} dxe4 {[%clk 01:23:53]}
{[%emt 00:06:29]} 9. Bf4 {[%clk 01:10:12]} {[%emt 00:31:08]} Ne7 {[%clk
01:09:07]} {[%emt 00:15:20]} 10. b4 {[%clk 01:08:44]} {[%emt 00:01:58]} Qc7
{[%clk 01:04:33]} {[%emt 00:05:05]} 11. fxe4 {[%clk 00:52:46]} {[%emt
00:16:27]} Ng6 {[%clk 01:02:58]} {[%emt 00:02:04]} 12. Bg3 {[%clk 00:51:36]}
{[%emt 00:01:41]} Qe7 {[%clk 01:02:06]} {[%emt 00:01:22]} 13. Qd6 {[%clk
00:45:08]} {[%emt 00:06:57]} O-O {[%clk 01:00:58]} {[%emt 00:01:39]} 14. h4
{[%clk 00:41:07]} {[%emt 00:04:31]} Rd8 {[%clk 01:00:35]} {[%emt 00:00:53]} 15.
Qxe7 {[%clk 00:41:26]} {[%emt 00:00:12]} Nxe7 {[%clk 01:01:04]} {[%emt
00:00:01]} 16. Nb2 {[%clk 00:40:49]} {[%emt 00:01:07]} b5 {[%clk 00:47:51]}
{[%emt 00:13:43]} 17. a4 {[%clk 00:40:29]} {[%emt 00:00:50]} Bd7 {[%clk
00:45:07]} {[%emt 00:03:14]} 18. c4 {[%clk 00:31:33]} {[%emt 00:09:26]} Na6
{[%clk 00:44:14]} {[%emt 00:01:23]} 19. axb5 {[%clk 00:24:44]} {[%emt
00:07:18]} Nxb4 {[%clk 00:44:32]} {[%emt 00:00:12]} 20. Rd1 {[%clk 00:19:17]}
{[%emt 00:05:49]} Bg4 {[%clk 00:31:46]} {[%emt 00:13:24]} 21. Rd6 {[%clk
00:19:24]} {[%emt 00:00:20]} cxb5 {[%clk 00:30:03]} {[%emt 00:02:16]} 22. cxb5
{[%clk 00:17:56]} {[%emt 00:01:59]} Rdc8 {[%clk 00:27:02]} {[%emt 00:03:30]} 23.
Bc4 {[%clk 00:16:35]} {[%emt 00:01:50]} Nc2+ {[%clk 00:21:24]} {[%emt
00:06:10]} 24. Kd2 {[%clk 00:17:02]} {[%emt 00:00:02]} Na3 {[%clk 00:21:39]}
{[%emt 00:00:16]} 25. Bd3 {[%clk 00:06:30]} {[%emt 00:11:01]} Rab8 {[%clk
00:14:19]} {[%emt 00:07:50]} 26. Ra6 {[%clk 00:05:55]} {[%emt 00:01:04]} Nxb5
{[%clk 00:12:41]} {[%emt 00:02:09]} 27. Nc4 {[%clk 00:05:07]} {[%emt 00:01:18]}
Nd4 {[%clk 00:08:42]} {[%emt 00:04:30]} 28. e6 {[%clk 00:04:37]} {[%emt
00:00:59]} Rb3 {[%clk 00:04:45]} {[%emt 00:04:27]} 29. exf7+ {[%clk 00:05:04]}
{[%emt 00:00:03]} Kf8 {[%clk 00:04:43]} {[%emt 00:00:33]} 30. Rxa7 {[%clk
00:03:29]} {[%emt 00:02:05]} Nec6 {[%clk 00:03:08]} {[%emt 00:02:05]} 31. Bd6+
{[%clk 00:03:45]} {[%emt 00:00:14]} 1-0

[Event "Masters Tournament (MTO)"]
[Site "Biel, Switzerland"]
[Date "2026.07.17"]
[Round "5.29"]
[White "Oestmann, Lukas"]
[Black "Ashwath, Kaushik"]
[Result "0-1"]
[TimeControl "100+30+30sec/move"]
[WhiteTitle "-"]
[BlackTitle "-"]
[WhiteFideId "1326457"]
[BlackFideId "33387230"]
[WhiteElo "1998"]
[BlackElo "2278"]

1. e4 {[%clk 01:40:59]} c5 {[%clk 01:40:56]} {[%emt 00:00:04]} 2. Nf3 {[%clk
01:41:04]} {[%emt 00:00:25]} d6 {[%clk 01:41:21]} {[%emt 00:00:05]} 3. d4
{[%clk 01:41:17]} {[%emt 00:00:17]} cxd4 {[%clk 01:41:48]} {[%emt 00:00:04]} 4.
Nxd4 {[%clk 01:41:43]} {[%emt 00:00:04]} Nf6 {[%clk 01:42:12]} {[%emt
00:00:05]} 5. Nc3 {[%clk 01:42:10]} {[%emt 00:00:03]} a6 {[%clk 01:42:37]}
{[%emt 00:00:07]} 6. f4 {[%clk 01:41:42]} {[%emt 00:00:59]} g6 {[%clk
01:42:43]} {[%emt 00:00:22]} 7. Nf3 {[%clk 01:41:47]} {[%emt 00:00:25]} Nc6
{[%clk 01:43:07]} {[%emt 00:00:07]} 8. e5 {[%clk 01:41:42]} {[%emt 00:00:34]}
Nd7 {[%clk 01:43:33]} {[%emt 00:00:04]} 9. exd6 {[%clk 01:32:48]} {[%emt
00:09:25]} Bg7 {[%clk 01:43:57]} {[%emt 00:00:06]} 10. Be3 {[%clk 01:21:32]}
{[%emt 00:11:45]} Bxc3+ {[%clk 01:44:21]} {[%emt 00:00:06]} 11. bxc3 {[%clk
01:21:40]} {[%emt 00:00:22]} Nf6 {[%clk 01:44:48]} {[%emt 00:00:03]} 12. Be2
{[%clk 01:15:56]} {[%emt 00:06:14]} O-O {[%clk 01:40:34]} {[%emt 00:04:44]} 13.
O-O {[%clk 01:12:59]} {[%emt 00:03:27]} Re8 {[%clk 01:36:01]} {[%emt 00:05:04]}
14. Bc4 {[%clk 01:01:36]} {[%emt 00:11:51]} exd6 {[%clk 01:33:40]} {[%emt
00:02:52]} 15. Bf2 {[%clk 01:00:02]} {[%emt 00:02:03]} d5 {[%clk 01:22:27]}
{[%emt 00:11:44]} 16. Bb3 {[%clk 00:59:26]} {[%emt 00:01:06]} Ne4 {[%clk
01:16:42]} {[%emt 00:06:14]} 17. Qxd5 {[%clk 00:53:27]} {[%emt 00:06:29]} Qxd5
{[%clk 01:16:55]} {[%emt 00:00:18]} 18. Bxd5 {[%clk 00:53:46]} {[%emt
00:00:11]} Nxc3 {[%clk 01:17:07]} {[%emt 00:00:18]} 19. Bxc6 {[%clk 00:41:21]}
{[%emt 00:12:55]} Ne2+ {[%clk 01:13:33]} {[%emt 00:04:04]} 20. Kh1 {[%clk
00:41:44]} {[%emt 00:00:07]} bxc6 {[%clk 01:13:58]} {[%emt 00:00:05]} 21. Rfe1
{[%clk 00:39:54]} {[%emt 00:02:19]} Bf5 {[%clk 01:11:04]} {[%emt 00:03:24]} 22.
Ne5 {[%clk 00:34:59]} {[%emt 00:05:25]} Nxf4 {[%clk 01:08:54]} {[%emt
00:02:40]} 23. Bg3 {[%clk 00:32:34]} {[%emt 00:02:55]} Nh5 {[%clk 01:04:26]}
{[%emt 00:04:59]} 24. Bh4 {[%clk 00:29:31]} {[%emt 00:03:31]} f6 {[%clk
00:56:19]} {[%emt 00:08:39]} 25. Nxc6 {[%clk 00:19:36]} {[%emt 00:10:26]} Bxc2
{[%clk 00:52:38]} {[%emt 00:04:11]} 26. Rxe8+ {[%clk 00:18:53]} {[%emt
00:01:13]} Rxe8 {[%clk 00:53:01]} {[%emt 00:00:07]} 27. Nb4 {[%clk 00:19:17]}
{[%emt 00:00:06]} Be4 {[%clk 00:50:59]} {[%emt 00:02:31]} 28. Nxa6 {[%clk
00:19:19]} {[%emt 00:00:29]} Nf4 {[%clk 00:50:51]} {[%emt 00:00:38]} 29. Nc5
{[%clk 00:19:16]} {[%emt 00:00:34]} Bxg2+ {[%clk 00:50:30]} {[%emt 00:00:50]}
30. Kg1 {[%clk 00:19:44]} {[%emt 00:00:02]} Re2 {[%clk 00:49:41]} {[%emt
00:01:19]} 31. Bf2 {[%clk 00:17:03]} {[%emt 00:03:10]} Bf3 {[%clk 00:49:13]}
{[%emt 00:00:58]} 32. Bg3 {[%clk 00:16:20]} {[%emt 00:01:14]} Nh3+ {[%clk
00:49:04]} {[%emt 00:00:39]} 33. Kf1 {[%clk 00:16:46]} {[%emt 00:00:05]} Rg2
{[%clk 00:49:25]} {[%emt 00:00:09]} 0-1